Workbook

Sheet Resumen (hidden)
A1: Menú
A62: Ingresos
A63: Egresos

Sheet FlujodeCaja (hidden)
A1: Menú
D7: Ahorro prom (%) | E7: Totales | F7: Ene | G7: Feb | H7: Mar | I7: Abr | J7: May | K7: Jun | L7: Jul | M7: Ago | N7: Sep | O7: Oct | P7: Nov | Q7: Dic | R7: Total | S7: Promedio
D8: =S10/S9 -> 0.3774509804 | E8: Ingresos | F8: =SUMIF($D$15:$D$59,"Ingreso",F15:F59) -> 760000 | G8: 840000 | H8: 755000 | I8: 765000 | J8: 750000 | K8: 740000 | L8: 764000 | M8: 745000 | N8: 800000 | O8: 750000 | P8: 760000 | Q8: =SUMIF($D$15:$D$59,"Ingreso",Q15:Q59) -> 844000 | R8: =SUM(F8:Q8) -> 9273000 | S8: =IF(R8=0,0,R8/COUNT(F8:Q8)) -> 772750
E9: Gastos | F9: =SUMIF($D15:$D60,"Egreso",F15:F60) -> 465000 | G9: =SUMIF($D15:$D60,"Egreso",G15:G60) -> 446000 | H9: 628000 | I9: 603000 | J9: 603000 | K9: 596000 | L9: 583000 | M9: 550000 | N9: 587000 | O9: 564000 | P9: 540000 | Q9: 567000 | R9: =SUM(F9:Q9) -> 6732000 | S9: =IF(R9=0,0,R9/COUNT(F9:Q9)) -> 561000
E10: Ahorro | F10: =F8-F9 -> 295000 | G10: =G8-G9 -> 394000 | H10: 127000 | I10: 162000 | J10: 147000 | K10: 144000 | L10: 181000 | M10: 195000 | N10: 213000 | O10: 186000 | P10: 220000 | Q10: 277000 | R10: =R8-R9 -> 2541000 | S10: =IF(R10=0,0,R10/COUNT(F10:Q10)) -> 211750
D11: Mensual | E11: Acumulado | F11: =F10 -> 295000 | G11: =G10+F11 -> 689000 | H11: =H10+G11 -> 816000 | I11: =I10+H11 -> 978000 | J11: =J10+I11 -> 1125000 | K11: =K10+J11 -> 1269000 | L11: =L10+K11 -> 1450000 | M11: 1645000 | N11: 1858000 | O11: 2044000 | P11: 2264000 | Q11: 2541000 | R11: =SUM(F10:Q10) -> 2541000 | S11: 211750
D14: Tipo | E14: Concepto | F14: Ene | G14: Feb | H14: Mar | I14: Abr | J14: May | K14: Jun | L14: Jul | M14: Ago | N14: Sep | O14: Oct | P14: Nov | Q14: Dic | R14: Total | S14: Promedio
D15: Ingreso | E15: Sueldo | F15: 600000 | G15: 600000 | H15: 600000 | I15: 600000 | J15: 600000 | K15: 600000 | L15: 600000 | M15: 600000 | N15: 600000 | O15: 600000 | P15: 600000 | Q15: 600000 | R15: =SUM(F15:Q15) -> 7200000 | S15: =IF(R15=0,0,R15/COUNT(F15:Q15)) -> 600000
D16: Ingreso | E16: Bono | G16: 100000 | N16: 60000 | Q16: 60000 | R16: =SUM(F16:Q16) -> 220000 | S16: =IF(R16=0,0,R16/COUNT(F16:Q16)) -> 73333.33333
D17: Ingreso | E17: Gratificación | L17: 4000 | Q17: 4000 | R17: 8000 | S17: =IF(R17=0,0,R17/COUNT(F17:Q17)) -> 4000
D18: Ingreso | E18: Arriendos | F18: 130000 | G18: 130000 | H18: 130000 | I18: 130000 | J18: 130000 | K18: 130000 | L18: 130000 | M18: 130000 | N18: 130000 | O18: 130000 | P18: 130000 | Q18: 130000 | R18: =SUM(F18:Q18) -> 1560000 | S18: =IF(R18=0,0,R18/COUNT(F18:Q18)) -> 130000
D19: Ingreso | E19: Negocio | F19: 30000 | G19: 10000 | H19: 25000 | I19: 35000 | J19: 20000 | K19: 10000 | L19: 30000 | M19: 15000 | N19: 10000 | O19: 20000 | P19: 30000 | Q19: 50000 | R19: 285000 | S19: =IF(R19=0,0,R19/COUNT(F19:Q19)) -> 23750
D20: Egreso | E20: Arriendo | F20: 200000 | G20: 200000 | H20: 200000 | I20: 200000 | J20: 200000 | K20: 200000 | L20: 200000 | M20: 200000 | N20: 200000 | O20: 200000 | P20: 200000 | Q20: 200000 | R20: =SUM(F20:Q20) -> 2400000 | S20: =IF(R20=0,0,R20/COUNT(F20:Q20)) -> 200000
D21: Egreso | E21: Préstamo | F21: 50000 | G21: 50000 | H21: 50000 | I21: 50000 | J21: 50000 | K21: 50000 | R21: =SUM(F21:Q21) -> 300000 | S21: =IF(R21=0,0,R21/COUNT(F21:Q21)) -> 50000
D22: Egreso | E22: Alimentos | F22: 90000 | G22: 80000 | H22: 100000 | I22: 95000 | J22: 90000 | K22: 100000 | L22: 110000 | M22: 95000 | N22: 125000 | O22: 105000 | P22: 100000 | Q22: 130000 | R22: 1220000 | S22: 101666.6667
D23: Egreso | E23: Colegio Hijos | H23: 100000 | I23: 60000 | J23: 60000 | K23: 60000 | L23: 60000 | M23: 60000 | N23: 60000 | O23: 60000 | P23: 60000 | Q23: 60000 | R23: 640000 | S23: 64000
D24: Egreso | E24: Movilidad Hijos | H24: 80000 | I24: 80000 | J24: 80000 | K24: 80000 | L24: 80000 | M24: 80000 | N24: 80000 | O24: 80000 | P24: 80000 | Q24: 80000 | R24: 800000 | S24: 80000
D25: Egreso | E25: Agua | F25: 25000 | G25: 23000 | H25: 18000 | I25: 17000 | J25: 18000 | K25: 19000 | L25: 18000 | M25: 19000 | N25: 20000 | O25: 19000 | P25: 20000 | Q25: 22000 | R25: 238000 | S25: 19833.33333
D26: Egreso | E26: Luz | F26: 35000 | G26: 36000 | H26: 35000 | I26: 35000 | J26: 37000 | K26: 38000 | L26: 45000 | M26: 46000 | N26: 40000 | O26: 35000 | P26: 34000 | Q26: 30000 | R26: 446000 | S26: 37166.66667
D27: Egreso | E27: Gas | F27: 25000 | G27: 22000 | H27: 25000 | I27: 26000 | J27: 28000 | K27: 29000 | L27: 30000 | M27: 30000 | N27: 27000 | O27: 25000 | P27: 26000 | Q27: 25000 | R27: 318000 | S27: 26500
D28: Egreso | E28: Tel/Int/Cel | F28: 20000 | G28: 20000 | H28: 20000 | I28: 20000 | J28: 20000 | K28: 20000 | L28: 20000 | M28: 20000 | N28: 20000 | O28: 20000 | P28: 20000 | Q28: 20000 | R28: 240000 | S28: 20000
D29: Egreso | E29: Comida Mascota | F29: 20000 | I29: 20000 | L29: 20000 | O29: 20000 | R29: 80000 | S29: 20000
D30: Egreso | E30: Salidas | G30: 15000 | J30: 20000 | N30: 15000 | R30: 50000 | S30: 16666.66667
D31: Egreso | E31: Crédito hipotecario | R31: 0 | S31: 0
D32: Egreso | E32: Linea de credito | R32: 0 | S32: 0
R33: 0 | S33: 0
R34: 0 | S34: 0
R35: 0 | S35: 0
R36: 0 | S36: 0
C43: Tipo | D43: Egreso
C45: Etiquetas de fila | D45: . | E45: Suma de Total2
C46: Arriendo | D46: 1 | E46: 2400000
C47: Alimentos | D47: 2 | E47: 1220000
C48: Movilidad Hijos | D48: 3 | E48: 800000
C49: Total general | E49: 4420000

Sheet Indicadores
A1: Menú
D18: INGRESO | I18: EGRESO
D19: Sueldo | I19: Tel/Int/Cel
D20: Bono | I20: Agua
D21: Gratificación | I21: Préstamo
D22: Arriendos | I22: Colegio Hijos
D23: Negocio | I23: Comida Mascota
I24: Luz
I25: Gas
I26: Pasajes
D27: TIPO | I27: Alimentos
D28: Ingreso | I28: Salidas
D29: Egreso | I29: Movilidad Hijos
I30: Arriendo
I31: Crédito hipotecario
I32: Linea de credito
